bitfinex/quotes_SOLUSD_20220218
["timestamp","ask_amount","ask_price","bid_price","bid_amount"]
[1645195816836,27.99211467,91.648,91.532,2.6293831]
[1645195817037,1.44711119,91.653,91.534,106.6]
[1645195817239,16.3828,91.65,91.536,106.6]
[1645195817438,16.3828,91.65,91.538,106.6]
[1645195817637,1.44711119,91.655,91.54,106.6]
[1645195817937,1.44711119,91.656,91.542,106.6]
[1645195818137,159.14063686,91.678,91.539,2.6293831]
[1645195818138,16.3837,91.64,91.544,106.6]
[1645195818337,16.3837,91.64,91.546,106.6]
[1645195818539,1.44711119,91.657,91.548,106.6]
[1645195818739,1.44711119,91.657,91.545,2.6293831]
[1645195818740,1.44711119,91.659,91.55,16.3819]
[1645195818942,1.44711119,91.653,91.55,16.3819]
[1645195819141,1.44711119,91.653,91.551,106.6]
[1645195819341,4.07649429,91.656,91.55,16.3819]
[1645195819541,106.6,91.653,91.55,16.3819]
[1645195819745,106.6,91.639,91.55,16.3819]
[1645195820042,106.6,91.637,91.543,40.20274738]
[1645195820642,2.6293831,91.638,91.543,40.20274738]
[1645195820845,2.6293831,91.636,91.543,40.20274738]
[1645195821243,106.6,91.634,91.543,40.20274738]
[1645195821543,106.6,91.6,91.543,40.20274738]
[1645195821945,2.6293831,91.599,91.543,40.20274738]
[1645195822347,4.07649429,91.616,91.55,1.15232815]
[1645195822546,16.3956,91.57,91.55,1.15232815]
[1645195823947,33.1746,91.57,91.55,1.15232815]
[1645195824649,16.779,91.57,91.55,1.15232815]
[1645195826551,16.779,91.57,91.55,0.9517693]
[1645195827751,16.779,91.57,91.543,41.35476632]
[1645195828650,16.2309,91.573,91.543,41.35476632]
[1645195828849,1.44711119,91.616,91.543,41.35476632]
[1645195829051,108.04711119,91.618,91.543,41.35476632]
[1645195829252,16.3904,91.6,91.543,41.35476632]
[1645195829453,3.69585615,91.603,91.543,41.35476632]
[1645195830059,2.6293831,91.602,91.543,1.15201894]
[1645195830256,106.6,91.6,91.543,1.15201894]
[1645195830455,2.6293831,91.602,91.543,1.15201894]
[1645195831257,1.44711119,91.611,91.543,1.15201894]
[1645195831460,106.6,91.605,91.544,55.27328297]
[1645195831659,27.71939207,91.606,91.544,55.27328297]
[1645195832058,106.6,91.605,91.544,55.27328297]
[1645195832459,0.84200482,91.572,91.544,55.27328297]
[1645195833960,1.44711119,91.616,91.544,55.27328297]
[1645195834161,1.44711119,91.623,91.545,106.6]
[1645195834361,16.3854,91.63,91.547,106.6]
[1645195834562,16.3854,91.63,91.551,106.6]
[1645195835063,1.44711119,91.637,91.545,47.0105]
[1645195835262,1.44711119,91.637,91.545,52.4685]
[1645195835461,1.44711119,91.641,91.545,52.4685]
[1645195835664,1.44711119,91.639,91.545,47.0105]
[1645195835962,1.44711119,91.639,91.546,106.6]
[1645195836362,16.3881,91.62,91.546,106.6]
[1645195836561,16.3881,91.62,91.545,52.4685]
[1645195836762,33.7971084,91.631,91.545,47.0105]
[1645195837162,2.6293831,91.63,91.545,47.0105]
[1645195837464,1.44711119,91.635,91.546,106.6]
[1645195837664,2.6293831,91.644,91.545,47.0105]
[1645195837665,1.44711119,91.639,91.551,106.6]
[1645195837865,0.84187175,91.571,91.552,5.458]
[1645195838062,0.84187175,91.571,91.545,52.4705]
[1645195838366,0.84187175,91.571,91.545,47.0105]
[1645195839166,0.84187175,91.571,91.544,55.27328297]
[1645195839765,2.6293831,91.608,91.544,55.27328297]
[1645195839965,1.44711119,91.624,91.544,55.27328297]
[1645195840164,4.07649429,91.624,91.544,55.27328297]
[1645195840565,2.6293831,91.624,91.544,55.27328297]
[1645195841163,16.3899,91.61,91.544,55.27328297]
[1645195841965,16.3899,91.61,91.545,106.6]
[1645195842365,16.3899,91.61,91.547,1.23299453]
[1645195842567,54.6321,91.63,91.547,1.23299453]
[1645195842766,16.3865,91.62,91.547,107.83299453]
[1645195842970,1.44711119,91.642,91.549,106.6]
[1645195843167,1.44711119,91.642,91.551,106.6]
[1645195843368,56.06761119,91.65,91.553,106.6]
[1645195843570,1.44711119,91.649,91.555,106.6]
[1645195843769,1.44711119,91.651,91.557,106.6]
[1645195843969,1.44711119,91.654,91.559,106.6]
[1645195844268,1.44711119,91.652,91.559,106.6]
[1645195844468,16.3832,91.64,91.561,106.6]
[1645195844867,16.3832,91.64,91.563,106.6]
[1645195845068,16.3832,91.64,91.565,106.6]
[1645195845269,16.3832,91.64,91.56,74.46064443]
[1645195845270,1.44711119,91.656,91.567,106.6]
[1645195845472,16.3813,91.65,91.571,106.6]
[1645195845672,16.3813,91.65,91.573,106.6]
[1645195845868,16.3813,91.65,91.575,106.6]
[1645195846477,16.3813,91.65,91.574,46.60850024]
[1645195846678,16.3831,91.64,91.574,46.60850024]
[1645195846878,54.6087,91.67,91.575,23.5421]
[1645195846879,1.44711119,91.663,91.575,23.5421]
[1645195847081,54.6087,91.67,91.575,23.5421]
[1645195847281,1.44711119,91.662,91.575,23.5421]
[1645195847478,1.44711119,91.661,91.575,23.5421]
[1645195847679,1.44711119,91.66,91.576,23.2201]
[1645195847982,1.44711119,91.663,91.577,106.6]
[1645195848179,1.44711119,91.672,91.579,106.6]
[1645195848379,1.44711119,91.673,91.581,106.6]
[1645195848578,1.44711119,91.673,91.583,106.6]
[1645195848784,1.44711119,91.671,91.583,106.6]
[1645195848984,16.3795,91.66,91.583,106.6]
[1645195849183,16.3795,91.66,91.591,106.6]
[1645195849684,16.3795,91.66,91.58,54.5943]
[1645195849986,5.456,91.694,91.576,23.2201]
[1645195849987,39.98740187,91.659,91.576,23.2201]
[1645195850185,1.44711119,91.656,91.55,16.3874]
[1645195850383,1.44711119,91.647,91.55,16.3874]
[1645195850585,1.44711119,91.649,91.552,48.613]
[1645195850784,1.44711119,91.648,91.552,48.613]
[1645195850985,4.07649429,91.646,91.552,48.613]
[1645195851188,0.00140571,91.62,91.57,16.3827]
[1645195851385,0.00140571,91.62,91.575,5.458]
[1645195851590,0.00140571,91.62,91.575,32.3251831]
[1645195851790,0.00140571,91.62,91.576,131.31389346]
[1645195851987,0.00140571,91.62,91.578,106.6]
[1645195852186,0.00140571,91.62,91.585,1.33235545]
[1645195852387,0.00140571,91.62,91.591,106.6]
[1645195852610,4.32056266,91.743,91.595,106.6]
[1645195852611,1.44711119,91.695,91.595,106.6]
[1645195852811,1.44711119,91.701,91.597,106.6]
[1645195853015,1.44711119,91.708,91.599,106.6]
[1645195853207,1.44711119,91.708,91.6,5.455]
[1645195853405,1.44711119,91.709,91.611,106.6]
[1645195853609,1.44711119,91.703,91.612,23.0348]
[1645195853808,1.44711119,91.703,91.613,51.46974164]
[1645195854005,1.44711119,91.705,91.614,106.6]
[1645195854208,1.44711119,91.705,91.616,106.6]
[1645195854406,1.44711119,91.715,91.616,106.6]
[1645195854607,24.5117,91.779,91.618,106.6]
[1645195854608,1.44711119,91.72,91.618,106.6]
[1645195854807,1.44711119,91.726,91.618,106.6]
[1645195855012,1.44711119,91.735,91.63,106.6]
[1645195855307,1.44711119,91.749,91.634,106.6]
[1645195855507,1.44711119,91.749,91.636,106.6]
[1645195855710,1.44711119,91.754,91.638,106.6]
[1645195855908,1.44711119,91.754,91.64,106.6]
[1645195856108,27.39297417,91.779,91.642,106.6]
[1645195856109,1.44711119,91.763,91.642,106.6]
[1645195856309,1.44711119,91.767,91.644,106.6]
[1645195856509,36.75868617,91.766,91.648,106.6]
[1645195856909,36.75868617,91.766,91.65,106.6]
[1645195856910,1.44711119,91.761,91.65,106.6]
[1645195857109,1.44711119,91.752,91.661,47.91641082]
[1645195857408,1.44711119,91.749,91.661,47.91641082]
[1645195857610,1.44711119,91.753,91.661,47.91641082]
[1645195857810,16.3684,91.73,91.661,47.91641082]
[1645195858010,1.44711119,91.759,91.661,72.13941082]
[1645195858213,1.44711119,91.76,91.661,72.13941082]
[1645195858410,1.44711119,91.755,91.661,47.91641082]
[1645195858613,1.44711119,91.739,91.661,47.91641082]
[1645195858812,1.84532861,91.736,91.661,47.91641082]
[1645195859013,106.6,91.734,91.661,47.91641082]
[1645195859213,54.5779,91.73,91.661,47.91641082]
[1645195859614,1.44711119,91.741,91.661,154.51641082]
[1645195859814,1.44711119,91.747,91.661,154.51641082]
[1645195860014,1.44711119,91.749,91.661,157.14579392]
[1645195860315,1.44711119,91.768,91.661,157.14579392]
[1645195860516,1.44711119,91.768,91.663,106.6]
[1645195860730,1.44711119,91.777,91.671,106.6]
[1645195860916,1.44711119,91.782,91.673,106.6]
[1645195861116,1.44711119,91.782,91.675,106.6]
[1645195861323,1.44711119,91.782,91.674,22.7733]
[1645195861518,1.44711119,91.769,91.675,41.23771486]
[1645195861927,1.44711119,91.783,91.675,41.23771486]
[1645195862119,1.44711119,91.789,91.676,2.6293831]
[1645195862317,16.3607,91.77,91.676,109.2293831]
[1645195862518,4.07649429,91.782,91.676,106.6]
[1645195862718,5.45,91.781,91.676,106.6]
[1645195862917,4.07649429,91.782,91.676,106.6]
[1645195862918,1.44711119,91.782,91.677,2.6293831]
[1645195863117,1.44711119,91.797,91.677,2.6293831]
[1645195863319,2.6293831,91.81,91.699,0.53]
[1645195863519,2.6293831,91.81,91.701,41.79538134]
[1645195863717,1.44080182,91.813,91.71,106.6]
[1645195863917,1.44080182,91.831,91.712,106.6]
[1645195864117,5.448,91.869,91.711,11.34712022]
[1645195864118,1.44080182,91.838,91.714,111.42757068]
[1645195864316,6.18795712,91.868,91.713,5.448]
[1645195864317,1.44080182,91.842,91.715,5.448]
[1645195864516,1.44080182,91.842,91.72,16.3472]
[1645195864717,1.44080182,91.833,91.72,16.3472]
[1645195864922,41.81878379,91.836,91.721,72.71023595]
[1645195865618,54.5215,91.83,91.721,72.71023595]
[1645195866019,1.44080182,91.841,91.722,8.0773831]
[1645195866217,1.44080182,91.841,91.722,32.3138831]
[1645195866417,1.44080182,91.844,91.723,2.6293831]
[1645195866619,1.44080182,91.844,91.724,5.447]
[1645195867119,1.44080182,91.844,91.724,8.0763831]
[1645195867317,1.44080182,91.849,91.73,16.354]
[1645195867518,1.44080182,91.849,91.732,106.6]
[1645195867721,1.44080182,91.849,91.735,148.99006318]
[1645195867918,1.44080182,91.853,91.737,106.6]
[1645195868117,1.44080182,91.857,91.739,106.6]
[1645195868317,1.44080182,91.857,91.741,106.6]
[1645195868520,1.44080182,91.854,91.751,106.6]
[1645195868718,1.44080182,91.859,91.751,106.6]
[1645195868917,1.44080182,91.859,91.755,106.6]
[1645195869117,1.44080182,91.859,91.755,5.446]
[1645195869318,42.97244001,91.865,91.755,5.446]
[1645195869518,42.97244001,91.865,91.756,2.6293831]
[1645195869719,3.83617421,91.839,91.76,16.3462]
[1645195870017,16.3497,91.84,91.76,16.3462]
[1645195871221,16.3469,91.86,91.76,16.3462]
[1645195871621,16.3469,91.86,91.761,8.0753831]
[1645195872023,34.1034381,91.859,91.761,5.446]
[1645195872221,16.348,91.85,91.761,5.446]
[1645195872431,16.348,91.85,91.76,16.3462]
[1645195872829,16.348,91.85,91.754,46.09909464]
[1645195873124,34.1034381,91.859,91.754,46.09909464]
[1645195873324,16.3529,91.82,91.752,24.8047]
[1645195873525,130.8195,91.857,91.752,24.8047]
[1645195873724,130.8195,91.857,91.722,24.2365]
[1645195873725,106.6,91.855,91.722,24.2365]
[1645195873925,106.6,91.853,91.722,24.2365]
[1645195874125,106.6,91.851,91.722,24.2365]
[1645195874325,106.6,91.849,91.734,42.72263995]
[1645195874525,106.6,91.829,91.734,42.72263995]
[1645195874725,106.6,91.827,91.734,42.72263995]
[1645195876029,34.1034381,91.799,91.734,42.72263995]
[1645195876225,106.6,91.798,91.718,5.447]
[1645195876628,106.6,91.796,91.718,5.447]
[1645195876825,5.449,91.795,91.718,5.447]
[1645195877025,16.3608,91.78,91.718,5.447]
[1645195877226,12.70517612,91.78,91.719,41.71935126]
[1645195877426,106.6,91.815,91.719,41.71935126]
[1645195877626,106.6,91.815,91.72,47.1307]
[1645195878028,106.6,91.815,91.72,153.7307]
[1645195878633,106.6,91.835,91.72,153.7307]
[1645195878830,5.448,91.834,91.72,156.3600831]
[1645195879029,1.44080182,91.849,91.722,106.6]
[1645195879230,5.448,91.848,91.724,106.6]
[1645195879431,5.448,91.848,91.726,106.6]
[1645195879630,39.43742376,91.834,91.731,106.6]
[1645195879832,1.44080182,91.86,91.733,106.6]
[1645195880035,46.7561,91.855,91.735,106.6]
[1645195880331,46.7561,91.855,91.737,106.6]
[1645195880732,39.9803501,91.839,91.74,159.72353006]
[1645195880936,16.3488,91.84,91.742,106.6]
[1645195881134,16.3488,91.84,91.751,106.6]
[1645195881333,15.8488,91.84,91.753,106.6]
[1645195881535,15.8488,91.84,91.755,106.6]
[1645195881733,1.44080182,91.858,91.755,106.6]
[1645195881934,41.15719549,91.849,91.757,106.6]
[1645195882136,41.15719549,91.849,91.756,48.13779495]
[1645195882634,1.44080182,91.847,91.756,48.13779495]
[1645195882838,16.3505,91.83,91.756,48.13779495]
[1645195883035,106.6,91.828,91.756,48.13779495]
[1645195883234,1.44080182,91.833,91.756,48.13779495]
[1645195883533,1.44080182,91.837,91.756,48.13779495]
[1645195883934,16.352,91.83,91.757,106.6]
[1645195884135,16.352,91.83,91.756,48.13779495]
[1645195884339,41.19660412,91.829,91.756,48.13779495]
[1645195884938,106.6,91.828,91.756,48.13779495]
[1645195885241,1.44080182,91.825,91.733,49.1356]
[1645195885437,1.44080182,91.822,91.733,49.1356]
[1645195885637,1.44080182,91.821,91.733,49.1356]
[1645195886040,1.44080182,91.82,91.734,54.69315339]
[1645195886254,55.96410182,91.82,91.734,54.69315339]
[1645195886651,54.5233,91.82,91.734,54.69315339]
[1645195887552,54.5233,91.82,91.758,1.49241626]
[1645195887951,1.44080182,91.818,91.758,1.49241626]
[1645195888151,1.44080182,91.819,91.758,1.49241626]
[1645195888352,1.44080182,91.821,91.758,1.49241626]
[1645195888552,1.44080182,91.823,91.758,1.49241626]
[1645195888753,1.44080182,91.822,91.758,1.49241626]
[1645195888955,1.44080182,91.815,91.758,1.49241626]
[1645195889353,1.44080182,91.819,91.758,1.49241626]
[1645195889554,1.44080182,91.821,91.758,1.49241626]
[1645195889953,1.44080182,91.809,91.758,1.49241626]
[1645195890154,1.44080182,91.81,91.758,1.49241626]
[1645195890354,1.44080182,91.81,91.76,16.3489]
[1645195890554,1.44080182,91.813,91.76,16.3489]
[1645195890759,1.44080182,91.814,91.76,16.3489]
[1645195890959,1.44080182,91.82,91.761,109.2293831]
[1645195891359,1.44080182,91.827,91.762,2.6293831]
[1645195891661,1.44080182,91.829,91.771,106.6]
[1645195891859,1.44080182,91.83,91.771,106.6]
[1645195892259,1.44080182,91.833,91.771,106.6]
[1645195892459,1.44080182,91.838,91.775,106.6]
[1645195892862,1.44080182,91.85,91.776,2.6293831]
[1645195893259,1.44080182,91.853,91.776,2.6293831]
[1645195893460,1.44080182,91.848,91.776,2.6293831]
[1645195893861,1.44080182,91.848,91.778,106.6]
[1645195894061,1.44080182,91.851,91.78,106.6]
[1645195894266,1.44080182,91.854,91.782,106.6]
[1645195894466,6.18407871,91.889,91.791,106.6]
[1645195894467,1.44080182,91.861,91.791,106.6]
[1645195894662,1.44080182,91.861,91.793,106.6]
[1645195894862,1.44080182,91.861,91.791,49.4025]
[1645195894863,1.44080182,91.861,91.795,106.6]
[1645195895062,1.44080182,91.861,91.797,106.6]
[1645195895265,1.82e-06,91.863,91.801,106.6]
[1645195895466,1.82e-06,91.863,91.803,106.6]
[1645195895665,1.82e-06,91.863,91.805,106.6]
[1645195895864,2.88127417,91.898,91.805,106.6]
[1645195896065,2.88127417,91.908,91.807,106.6]
[1645195896264,16.3356,91.91,91.809,106.6]
[1645195896469,16.3356,91.91,91.811,106.6]
[1645195896664,2.88127417,91.918,91.813,106.6]
[1645195896867,2.88127417,91.917,91.814,5.442]
[1645195897064,47.82925172,91.917,91.816,49.89754367]
[1645195897265,16.3387,91.9,91.816,49.89754367]
[1645195897464,2.88127417,91.912,91.816,49.89754367]
[1645195897667,2.88127417,91.908,91.816,49.89754367]
[1645195897867,2.88127417,91.911,91.816,49.89754367]
[1645195898066,6.18244339,91.912,91.816,49.89754367]
[1645195898466,16.3391,91.89,91.816,49.89754367]
[1645195898666,6.18244339,91.912,91.816,49.89754367]
[1645195898869,44.94797755,91.917,91.816,49.89754367]
[1645195899066,6.18261446,91.911,91.82,16.3382]
[1645195899368,6.18261446,91.91,91.816,49.89754367]
[1645195899565,16.3386,91.9,91.816,49.89754367]
[1645195899765,1.86063667,91.899,91.816,49.89754367]
[1645195899966,4.49001977,91.899,91.816,49.89754367]
[1645195900166,106.6,91.897,91.816,49.89754367]
[1645195900367,5.442,91.898,91.816,49.89754367]
[1645195900368,106.6,91.895,91.816,49.89754367]
[1645195900567,106.6,91.893,91.816,49.89754367]
[1645195900767,106.6,91.891,91.816,49.89754367]
[1645195900967,11.62618521,91.892,91.816,49.89754367]
[1645195900968,35.7971217,91.879,91.816,49.89754367]
[1645195901468,2.6293831,91.878,91.791,24.8201]
[1645195901667,16.3475,91.85,91.791,24.8201]
[1645195901871,5.445,91.889,91.791,24.8201]
[1645195902067,54.479,91.89,91.793,106.6]
[1645195902267,35.86627491,91.893,91.795,106.6]
[1645195902468,2.88127417,91.91,91.795,106.6]
[1645195902767,2.88127417,91.905,91.796,24.8492]
[1645195902967,2.6293831,91.892,91.796,24.8492]
[1645195903169,54.4848,91.88,91.796,24.8492]
[1645195903367,2.88127417,91.902,91.797,114.6733831]
[1645195903568,2.88127417,91.909,91.797,114.6733831]
[1645195903868,16.3355,91.91,91.799,106.6]
[1645195904067,16.3355,91.91,91.801,106.6]
[1645195904267,16.3355,91.91,91.803,106.6]
[1645195904666,16.3355,91.91,91.805,106.6]
[1645195904867,16.3355,91.91,91.807,106.6]
[1645195905068,2.88127417,91.935,91.809,106.6]
[1645195905267,16.3338,91.92,91.809,106.6]
[1645195905469,2.88127417,91.938,91.811,106.6]
[1645195905667,2.88127417,91.939,91.813,106.6]
[1645195905867,2.88127417,91.939,91.815,106.6]
[1645195906068,45.59223548,91.943,91.817,106.6]
[1645195906269,16.3314,91.94,91.841,106.6]
[1645195906468,16.3314,91.94,91.843,106.6]
[1645195906668,16.3314,91.94,91.845,106.6]
[1645195906868,54.4379,91.96,91.847,106.6]
[1645195907069,2.88127417,91.973,91.849,106.6]
[1645195907269,6.17918034,91.975,91.861,106.6]
[1645195907568,2.88127417,91.994,91.863,106.6]
[1645195907767,2.88127417,91.994,91.862,28.6324]
[1645195907768,6.17820068,91.995,91.865,106.6]
[1645195907969,2.88127417,91.995,91.867,106.6]
[1645195908169,2.88127417,91.997,91.869,106.6]
[1645195908372,36.97220395,91.996,91.871,106.6]
[1645195908571,16.3234,91.98,91.881,106.6]
[1645195908769,16.3234,91.98,91.883,106.6]
[1645195909170,2.88127417,92.001,91.885,106.6]
[1645195909369,2.88127417,92.003,91.887,106.6]
[1645195909572,2.88127417,92.003,91.886,48.9903]
[1645195909573,16.3215,91.99,91.891,106.6]
[1645195909769,16.3215,91.99,91.895,106.6]
[1645195909970,16.3215,91.99,91.897,106.6]
[1645195910171,2.88127417,92.008,91.899,106.6]
[1645195910374,2.88127417,92.008,91.901,106.6]
[1645195910571,12.82,92.07,91.903,106.6]
[1645195910572,2.88127417,92.017,91.903,106.6]
[1645195910774,2.88127417,92.024,91.903,106.6]
[1645195910973,16.3179,92.01,91.931,106.6]
[1645195911173,54.3975,92.03,91.931,106.6]
[1645195911375,54.3975,92.03,91.931,112.034]
[1645195911574,6.17633392,92.029,91.931,106.6]
[1645195911874,2.88127417,92.042,91.933,106.6]
[1645195912077,29.1538,92.09,91.935,106.6]
[1645195912078,36.33322898,92.041,91.935,106.6]
[1645195912278,42.50879294,92.041,91.937,106.6]
[1645195912478,36.33322898,92.041,91.937,106.6]
[1645195912679,16.3143,92.04,91.939,106.6]
[1645195912876,54.3839,92.05,91.94,5.434]
[1645195913078,2.6293831,92.039,91.934,41.32601638]
[1645195913477,106.6,92.037,91.934,41.32601638]
[1645195913679,106.6,92.035,91.934,41.32601638]
[1645195913877,5.434,92.034,91.934,41.32601638]
[1645195914079,14.72427209,92.049,91.94,16.3168]
[1645195914277,106.6,92.047,91.94,16.3168]
[1645195914478,106.6,92.045,91.934,41.32601638]
[1645195914877,63.65,92.036,91.911,5.434]
[1645195915078,37.20777744,92.044,91.911,5.434]
[1645195915079,2.88127417,92.03,91.911,5.434]
[1645195915378,109.48127417,92.028,91.911,5.434]
[1645195915577,106.6,92.026,91.911,5.434]
[1645195915777,106.6,92.024,91.911,5.434]
[1645195916077,106.6,92.022,91.912,45.55777953]
[1645195916276,106.6,92.02,91.912,45.55777953]
[1645195916477,39.19840674,92.023,91.912,45.55777953]
[1645195916478,106.6,92.007,91.912,45.55777953]
[1645195916680,106.6,92.005,91.912,45.55777953]
[1645195916878,10.49148165,92.008,91.912,45.55777953]
[1645195916879,63.65,92.002,91.912,45.55777953]
[1645195917080,112.037,92.001,91.912,45.55777953]
[1645195917282,106.6,92.001,91.912,45.55777953]
[1645195917681,106.6,92.001,91.936,1.46509861]
[1645195917887,1.39236231,91.925,91.912,45.55777953]
[1645195918082,1.39236231,91.925,91.911,5.434]
[1645195918686,1.39236231,91.925,91.864,24.9223]
[1645195919183,33.70040095,91.924,91.865,79.66617908]
[1645195919382,33.70040095,91.924,91.864,24.9223]
[1645195919786,1.39236231,91.925,91.864,24.9223]
[1645195920002,1.39236231,91.925,91.849,106.6]
[1645195920185,1.39236231,91.925,91.85,21.7733]
[1645195920385,1.39236231,91.925,91.85,16.3323]
[1645195920786,1.39236231,91.925,91.851,46.00281054]
[1645195921986,2.6293831,91.924,91.851,46.00281054]
[1645195922388,1.39236231,91.925,91.851,46.00281054]
[1645195922589,106.6,91.899,91.818,2.6293831]
[1645195922790,106.6,91.897,91.794,73.0447]
[1645195923187,2.6293831,91.896,91.794,73.0447]
[1645195923385,106.6,91.895,91.781,49.2932]
[1645195923586,144.43374646,91.895,91.795,48.74656736]
[1645195923786,54.4808,91.89,91.795,48.74656736]
[1645195924188,106.6,91.889,91.795,48.74656736]
[1645195924789,37.83374646,91.895,91.795,48.74656736]
[1645195924790,16.3465,91.85,91.795,48.74656736]
[1645195924991,63.46126776,91.88,91.795,48.74656736]
[1645195925388,54.4864,91.88,91.795,48.74656736]
[1645195925589,5.444,91.907,91.795,48.74656736]
[1645195925890,106.6,91.906,91.796,26.9192831]
[1645195926090,109.2293831,91.906,91.796,24.2899]
[1645195926292,2.6293831,91.906,91.797,2.6293831]
[1645195926493,2.6293831,91.935,91.798,5.442]
[1645195926691,24.75,91.947,91.809,5.53]
[1645195926893,106.6,91.946,91.81,29.2076]
[1645195927091,24.75,91.947,91.812,106.6]
[1645195927291,24.75,91.947,91.814,106.6]
[1645195927515,36.80178591,91.946,91.82,106.6]
[1645195927691,10.00682831,91.932,91.822,106.6]
[1645195927891,109.48127417,91.972,91.824,106.6]
[1645195928093,106.6,91.97,91.826,106.6]
[1645195928295,54.4398,91.96,91.841,106.6]
[1645195928494,47.3617,91.979,91.843,106.6]
[1645195928696,47.3617,91.979,91.845,106.6]
[1645195928894,46.28786208,91.953,91.847,106.6]
[1645195929496,0.52075214,91.939,91.861,46.11162455]
[1645195929696,106.6,91.978,91.862,106.6]
[1645195930101,47.3617,91.979,91.862,106.6]
[1645195930698,2.24474876,91.927,91.862,106.6]
[1645195930901,2.24474876,91.927,91.87,16.3302]
[1645195931099,2.6293831,91.957,91.861,46.11162455]
[1645195931299,2.6293831,91.957,91.844,5.441]
[1645195931300,106.6,91.955,91.844,5.441]
[1645195931499,106.6,91.953,91.844,5.441]
[1645195931699,109.48127417,91.951,91.844,5.441]
[1645195931899,106.6,91.949,91.844,5.441]
[1645195932100,106.6,91.947,91.844,5.441]
[1645195932300,37.92589968,91.924,91.845,42.66703021]
[1645195933201,5.441,91.948,91.845,42.66703021]
[1645195933402,54.4567,91.93,91.845,42.66703021]
[1645195933604,5.441,91.948,91.845,42.66703021]
[1645195934206,42.79098942,91.932,91.847,106.6]
[1645195934406,42.79098942,91.932,91.848,48.0945]
[1645195934606,42.79098942,91.932,91.85,16.3333]
[1645195935221,62.76657417,91.95,91.85,16.3333]
[1645195935425,62.76657417,91.95,91.851,106.6]
[1645195935426,57.32557417,91.95,91.851,106.6]
[1645195935623,2.88127417,91.961,91.86,16.3307]
[1645195935822,2.88127417,91.963,91.861,106.6]
[1645195936023,2.88127417,91.964,91.861,106.6]
[1645195936325,34.11195712,91.924,91.862,48.45647622]
[1645195936523,16.3354,91.92,91.862,48.45647622]
[1645195936723,34.11195712,91.924,91.862,48.45647622]
[1645195937123,54.4499,91.94,91.862,48.45647622]
[1645195937324,2.88127417,91.954,91.862,48.45647622]
[1645195937524,2.88127417,91.959,91.862,48.45647622]
[1645195937726,0.89236231,91.925,91.862,48.45647622]
[1645195938123,41.82196524,91.924,91.862,48.45647622]
[1645195938724,0.89236231,91.925,91.862,48.45647622]
[1645195939329,16.3356,91.91,91.862,48.45647622]
[1645195939726,0.89236231,91.925,91.862,48.45647622]
[1645195939929,1.04992485,91.921,91.862,48.45647622]
[1645195940130,0.89236231,91.925,91.862,48.45647622]
[1645195940730,0.89236231,91.925,91.85,16.3341]
[1645195940929,0.89236231,91.925,91.847,1.29565617]
[1645195941429,106.6,91.923,91.847,1.29565617]
[1645195941631,106.6,91.899,91.847,1.29565617]
[1645195941828,106.6,91.897,91.847,1.29565617]
[1645195942028,106.6,91.895,91.847,1.29565617]
[1645195942229,42.8263005,91.898,91.811,48.28894528]
[1645195942528,106.6,91.897,91.811,48.28894528]
[1645195942729,106.6,91.897,91.812,44.05370159]
[1645195942931,106.6,91.895,91.812,44.05370159]
[1645195943128,42.8263005,91.898,91.812,44.05370159]
[1645195943328,106.6,91.897,91.812,44.05370159]
[1645195943532,106.6,91.889,91.812,44.05370159]
[1645195943730,16.3441,91.86,91.812,44.05370159]
[1645195946032,16.3421,91.88,91.812,44.05370159]
[1645195946834,24.1574,91.908,91.813,109.2293831]
[1645195947032,2.88127417,91.913,91.813,109.2293831]
[1645195947033,16.3385,91.9,91.813,154.6655831]
[1645195947241,16.3385,91.9,91.814,2.6293831]
[1645195947633,36.61814321,91.899,91.814,3.93011025]
[1645195947837,106.6,91.898,91.814,3.93011025]